[Event "Early-Titled-Tuesday-Blitz-April-23-2024"]
[Site "Chess.com"]
[Date "2024.04.23"]
[Round "10"]
[White "DonkyDonkyDonkey"]
[Black "Tagir45"]
[Result "1-0"]
[WhiteElo "2916"]
[BlackElo "2660"]
[TimeControl "180+1"]
[EndTime "10:01:05 PDT"]
[Termination "DonkyDonkyDonkey won on time"]

1. e4 {[%clk 0:03:00.9]} 1... c5 {[%clk 0:02:59.2]} 2. Nc3 {[%clk 0:03:01.2]}
2... Nc6 {[%clk 0:02:58.2]} 3. f4 {[%clk 0:03:01.5]} 3... e6 {[%clk 0:02:57.5]}
4. Nf3 {[%clk 0:03:02.1]} 4... d5 {[%clk 0:02:56]} 5. Bb5 {[%clk 0:03:02.8]}
5... Ne7 {[%clk 0:02:55.4]} 6. O-O {[%clk 0:03:02.4]} 6... a6 {[%clk 0:02:53.4]}
7. Bxc6+ {[%clk 0:03:02.2]} 7... Nxc6 {[%clk 0:02:53.1]} 8. d3 {[%clk
0:03:03.1]} 8... Be7 {[%clk 0:02:47.4]} 9. Qe1 {[%clk 0:03:02.9]} 9... b5 {[%clk
0:02:44.8]} 10. Qg3 {[%clk 0:02:55.7]} 10... g6 {[%clk 0:02:43.7]} 11. f5 {[%clk
0:02:54.7]} 11... dxe4 {[%clk 0:02:16.2]} 12. dxe4 {[%clk 0:02:55.6]} 12... b4
{[%clk 0:02:15.3]} 13. Rd1 {[%clk 0:02:55.2]} 13... Qb6 {[%clk 0:02:08.8]} 14.
Na4 {[%clk 0:02:50.8]} 14... Qb5 {[%clk 0:02:06.9]} 15. b3 {[%clk 0:02:51.3]}
15... exf5 {[%clk 0:02:03.4]} 16. Bb2 {[%clk 0:02:47.6]} 16... O-O {[%clk
0:02:00.7]} 17. Qf4 {[%clk 0:02:37.8]} 17... Ra7 {[%clk 0:01:17.5]} 18. c4
{[%clk 0:02:22.9]} 18... Qb8 {[%clk 0:01:04.2]} 19. Qh6 {[%clk 0:02:18.3]} 19...
f6 {[%clk 0:01:03.5]} 20. exf5 {[%clk 0:00:52.3]} 20... Bxf5 {[%clk 0:01:04.4]}
21. Rd5 {[%clk 0:00:47.8]} 21... Rf7 {[%clk 0:00:38.2]} 22. Re1 {[%clk
0:00:45.8]} 22... Bf8 {[%clk 0:00:35.6]} 23. Qd2 {[%clk 0:00:46]} 23... Bg4
{[%clk 0:00:31.8]} 24. Qf2 {[%clk 0:00:40.4]} 24... Rae7 {[%clk 0:00:24.7]} 25.
Rxe7 {[%clk 0:00:32.4]} 25... Bxe7 {[%clk 0:00:16.2]} 26. Nxc5 {[%clk
0:00:28.6]} 26... Qf4 {[%clk 0:00:12]} 27. Nd3 {[%clk 0:00:26.7]} 27... Qe4
{[%clk 0:00:10.6]} 28. Nd2 {[%clk 0:00:17.9]} 28... Qe6 {[%clk 0:00:10.7]} 29.
h3 {[%clk 0:00:17.7]} 29... Bf5 {[%clk 0:00:10.5]} 30. Nf4 {[%clk 0:00:18]}
30... Qc8 {[%clk 0:00:09.3]} 31. Nf3 {[%clk 0:00:17.9]} 31... Be4 {[%clk
0:00:08.6]} 32. Rd1 {[%clk 0:00:18]} 32... Bxf3 {[%clk 0:00:08.3]} 33. Qxf3
{[%clk 0:00:18.9]} 33... Ne5 {[%clk 0:00:08.5]} 34. Qd5 {[%clk 0:00:18.2]} 34...
Kg7 {[%clk 0:00:05.3]} 35. Ne6+ {[%clk 0:00:18.1]} 35... Kg8 {[%clk 0:00:05.5]}
36. Rf1 {[%clk 0:00:14.4]} 36... Qd7 {[%clk 0:00:03.3]} 37. Bxe5 {[%clk
0:00:11.3]} 37... Qxd5 {[%clk 0:00:02.9]} 38. cxd5 {[%clk 0:00:12.1]} 38... fxe5
{[%clk 0:00:03.4]} 39. Rxf7 {[%clk 0:00:10.5]} 39... Kxf7 {[%clk 0:00:04.1]} 40.
Kf2 {[%clk 0:00:11.4]} 40... Kf6 {[%clk 0:00:02.5]} 41. Kf3 {[%clk 0:00:11.8]}
41... h5 {[%clk 0:00:01.7]} 42. Ke4 {[%clk 0:00:11.2]} 42... g5 {[%clk
0:00:00.9]} 43. g4 {[%clk 0:00:10.7]} 1-0

[Event "Early-Titled-Tuesday-Blitz-April-23-2024"]
[Site "Chess.com"]
[Date "2024.04.23"]
[Round "10"]
[White "jaskol95"]
[Black "Aygehovit1992"]
[Result "1-0"]
[WhiteElo "2591"]
[BlackElo "2733"]
[TimeControl "180+1"]
[EndTime "10:01:06 PDT"]
[Termination "jaskol95 won on time"]

1. e4 {[%clk 0:03:00.9]} 1... c5 {[%clk 0:02:53.8]} 2. Nf3 {[%clk 0:03:00.6]}
2... e6 {[%clk 0:02:51.3]} 3. d4 {[%clk 0:03:00.3]} 3... cxd4 {[%clk 0:02:52.2]}
4. Nxd4 {[%clk 0:03:00.7]} 4... Nc6 {[%clk 0:02:53]} 5. Nc3 {[%clk 0:02:59.9]}
5... Qc7 {[%clk 0:02:52.9]} 6. Ncb5 {[%clk 0:02:55.4]} 6... Qb8 {[%clk
0:02:52.8]} 7. Be3 {[%clk 0:02:53.1]} 7... a6 {[%clk 0:02:47.9]} 8. Nxc6 {[%clk
0:02:53.1]} 8... bxc6 {[%clk 0:02:48.4]} 9. Nd4 {[%clk 0:02:50]} 9... Nf6 {[%clk
0:02:47.9]} 10. Bd3 {[%clk 0:02:49.8]} 10... h5 {[%clk 0:02:45.3]} 11. h3 {[%clk
0:02:45]} 11... c5 {[%clk 0:02:39.3]} 12. Nb3 {[%clk 0:02:43.1]} 12... Bb7
{[%clk 0:02:08.4]} 13. Nxc5 {[%clk 0:02:37]} 13... Bxc5 {[%clk 0:02:08]} 14.
Bxc5 {[%clk 0:02:37.9]} 14... Bxe4 {[%clk 0:02:08.1]} 15. O-O {[%clk 0:02:27]}
15... Ng4 {[%clk 0:01:43.1]} 16. hxg4 {[%clk 0:02:07.1]} 16... hxg4 {[%clk
0:01:42.1]} 17. f4 {[%clk 0:02:04.3]} 17... gxf3 {[%clk 0:01:36]} 18. Bxe4
{[%clk 0:02:02.2]} 18... Qh2+ {[%clk 0:01:33.7]} 19. Kf2 {[%clk 0:02:02.9]}
19... Qxg2+ {[%clk 0:01:33.1]} 20. Ke3 {[%clk 0:02:03.5]} 20... Qg5+ {[%clk
0:01:28.1]} 21. Kd4 {[%clk 0:01:48.2]} 21... Rh4 {[%clk 0:01:27.5]} 22. Qxf3
{[%clk 0:01:20.5]} 22... f5 {[%clk 0:01:19.4]} 23. Kc3 {[%clk 0:01:02.2]} 23...
Rc8 {[%clk 0:01:02.7]} 24. b4 {[%clk 0:01:02.5]} 24... Rxe4 {[%clk 0:01:02.3]}
25. Kb2 {[%clk 0:00:58.1]} 25... Qf6+ {[%clk 0:00:58.3]} 26. c3 {[%clk
0:00:56.6]} 26... Qe5 {[%clk 0:00:49.2]} 27. Rad1 {[%clk 0:00:42.5]} 27... Rxc5
{[%clk 0:00:35.2]} 28. bxc5 {[%clk 0:00:40.3]} 28... Qxc5 {[%clk 0:00:36.1]} 29.
Qd3 {[%clk 0:00:37.1]} 29... Qb5+ {[%clk 0:00:27.4]} 30. Qxb5 {[%clk 0:00:36.9]}
30... axb5 {[%clk 0:00:28.3]} 31. Rd4 {[%clk 0:00:33.3]} 31... Re2+ {[%clk
0:00:26]} 32. Kb3 {[%clk 0:00:34]} 32... g5 {[%clk 0:00:26.4]} 33. c4 {[%clk
0:00:33.8]} 33... bxc4+ {[%clk 0:00:26.5]} 34. Rxc4 {[%clk 0:00:34.3]} 34... g4
{[%clk 0:00:21.1]} 35. a4 {[%clk 0:00:34.9]} 35... g3 {[%clk 0:00:14.4]} 36. a5
{[%clk 0:00:35]} 36... d5 {[%clk 0:00:05.1]} 37. Ra4 {[%clk 0:00:32.2]} 37... g2
{[%clk 0:00:03.8]} 38. Rg1 {[%clk 0:00:31.8]} 38... Re3+ {[%clk 0:00:04.3]} 39.
Kb2 {[%clk 0:00:30.6]} 39... Re2+ {[%clk 0:00:04.7]} 40. Kb1 {[%clk 0:00:30.8]}
40... f4 {[%clk 0:00:04.5]} 41. a6 {[%clk 0:00:30.9]} 41... f3 {[%clk
0:00:04.5]} 42. a7 {[%clk 0:00:31.1]} 42... f2 {[%clk 0:00:03.7]} 43. a8=Q+
{[%clk 0:00:31.6]} 43... Kf7 {[%clk 0:00:04]} 44. Ra7+ {[%clk 0:00:28.8]} 44...
Kf6 {[%clk 0:00:03.9]} 45. Qf8+ {[%clk 0:00:29]} 45... Ke5 {[%clk 0:00:04.3]}
46. Qg7+ {[%clk 0:00:26.3]} 46... Kf4 {[%clk 0:00:02.3]} 47. Rf7+ {[%clk
0:00:20]} 47... Ke3 {[%clk 0:00:02.5]} 48. Qg3+ {[%clk 0:00:19.4]} 48... Kd2
{[%clk 0:00:02.5]} 49. Rxf2 {[%clk 0:00:15.9]} 1-0

[Event "Early-Titled-Tuesday-Blitz-April-23-2024"]
[Site "Chess.com"]
[Date "2024.04.23"]
[Round "10"]
[White "carloseduar100"]
[Black "Ziyamammadov"]
[Result "0-1"]
[WhiteElo "2197"]
[BlackElo "1982"]
[TimeControl "180+1"]
[EndTime "10:01:06 PDT"]
[Termination "Ziyamammadov won by resignation"]

1. e4 {[%clk 0:02:59.3]} 1... e6 {[%clk 0:02:58.1]} 2. d3 {[%clk 0:02:58.1]}
2... d5 {[%clk 0:02:57]} 3. Nd2 {[%clk 0:02:58.3]} 3... dxe4 {[%clk 0:02:55.4]}
4. dxe4 {[%clk 0:02:57.9]} 4... Nf6 {[%clk 0:02:56.3]} 5. g3 {[%clk 0:02:56.2]}
5... Bc5 {[%clk 0:02:55.3]} 6. Bg2 {[%clk 0:02:55.7]} 6... Qd4 {[%clk
0:02:51.5]} 7. Qe2 {[%clk 0:02:54.9]} 7... e5 {[%clk 0:02:50.8]} 8. Ngf3 {[%clk
0:02:54.4]} 8... Qd6 {[%clk 0:02:48.5]} 9. O-O {[%clk 0:02:51]} 9... Bg4 {[%clk
0:02:48]} 10. Qb5+ {[%clk 0:02:45]} 10... Qc6 {[%clk 0:02:44.8]} 11. Qb3 {[%clk
0:02:23.9]} 11... Nbd7 {[%clk 0:02:37.5]} 12. c3 {[%clk 0:01:49]} 12... O-O
{[%clk 0:02:30.6]} 13. Qc2 {[%clk 0:01:43.7]} 13... Bh5 {[%clk 0:02:17.8]} 14.
Nc4 {[%clk 0:01:43.6]} 14... Rfe8 {[%clk 0:02:09.3]} 15. Ne3 {[%clk 0:01:41.5]}
15... Bxe3 {[%clk 0:01:58.7]} 16. Bxe3 {[%clk 0:01:39.9]} 16... Qxe4 {[%clk
0:01:57.8]} 17. Qxe4 {[%clk 0:01:38.9]} 17... Nxe4 {[%clk 0:01:58.7]} 18. Nh4
{[%clk 0:01:34.2]} 18... Nef6 {[%clk 0:01:45.2]} 19. Bxb7 {[%clk 0:01:33]} 19...
Rab8 {[%clk 0:01:38.5]} 20. Bg2 {[%clk 0:01:32.5]} 20... Rxb2 {[%clk 0:01:32]}
21. Bxa7 {[%clk 0:01:32.8]} 21... e4 {[%clk 0:01:14]} 22. Nf5 {[%clk 0:01:22]}
22... Bg6 {[%clk 0:01:11.4]} 23. Ne3 {[%clk 0:01:19.8]} 23... c5 {[%clk
0:00:58.4]} 24. Rfb1 {[%clk 0:01:08.7]} 24... Rxb1+ {[%clk 0:00:48.7]} 25. Rxb1
{[%clk 0:01:09.3]} 25... Ra8 {[%clk 0:00:46.7]} 26. Rb7 {[%clk 0:01:09.6]} 26...
Rd8 {[%clk 0:00:29.9]} 27. a4 {[%clk 0:01:09.1]} 27... Ne5 {[%clk 0:00:27.8]}
28. Bxc5 {[%clk 0:01:04]} 28... Nfg4 {[%clk 0:00:27.1]} 29. h3 {[%clk
0:00:45.7]} 29... Nxe3 {[%clk 0:00:20.5]} 30. Bxe3 {[%clk 0:00:46.6]} 30... h6
{[%clk 0:00:20.4]} 31. a5 {[%clk 0:00:46.6]} 31... Rd1+ {[%clk 0:00:16.4]} 32.
Kh2 {[%clk 0:00:46.3]} 32... Ra1 {[%clk 0:00:16.9]} 33. Ra7 {[%clk 0:00:34.6]}
33... f5 {[%clk 0:00:17]} 34. a6 {[%clk 0:00:33.1]} 34... Bh5 {[%clk 0:00:17.1]}
35. Bd4 {[%clk 0:00:26.2]} 35... Nf3+ {[%clk 0:00:16.3]} 36. Bxf3 {[%clk
0:00:22]} 36... Bxf3 {[%clk 0:00:17.2]} 37. g4 {[%clk 0:00:19]} 37... f4 {[%clk
0:00:14]} 38. Rxg7+ {[%clk 0:00:13.9]} 38... Kf8 {[%clk 0:00:11.6]} 39. Bc5+
{[%clk 0:00:09.5]} 39... Kxg7 {[%clk 0:00:11]} 40. g5 {[%clk 0:00:08]} 40...
hxg5 {[%clk 0:00:09.6]} 0-1

[Event "Early-Titled-Tuesday-Blitz-April-23-2024"]
[Site "Chess.com"]
[Date "2024.04.23"]
[Round "10"]
[White "Polish_fighter3000"]
[Black "Hikaru"]
[Result "0-1"]
[WhiteElo "3112"]
[BlackElo "3298"]
[TimeControl "180+1"]
[EndTime "10:01:07 PDT"]
[Termination "Hikaru won on time"]

1. b3 {[%clk 0:03:00.9]} 1... a5 {[%clk 0:02:56.7]} 2. Bb2 {[%clk 0:03:01.8]}
2... a4 {[%clk 0:02:57]} 3. b4 {[%clk 0:03:02]} 3... e6 {[%clk 0:02:48]} 4. a3
{[%clk 0:03:00.4]} 4... Nf6 {[%clk 0:02:48.4]} 5. e3 {[%clk 0:02:57.1]} 5... c5
{[%clk 0:02:48.5]} 6. bxc5 {[%clk 0:02:50.5]} 6... Bxc5 {[%clk 0:02:49.4]} 7. c4
{[%clk 0:02:49.8]} 7... d5 {[%clk 0:02:46.9]} 8. Nf3 {[%clk 0:02:49.1]} 8... O-O
{[%clk 0:02:41.5]} 9. Nc3 {[%clk 0:02:37.6]} 9... Bd7 {[%clk 0:02:32.4]} 10.
cxd5 {[%clk 0:02:21.3]} 10... Nxd5 {[%clk 0:02:27.3]} 11. Qc2 {[%clk 0:02:18.1]}
11... Be7 {[%clk 0:02:22.1]} 12. h4 {[%clk 0:01:57.3]} 12... Nxc3 {[%clk
0:02:06.8]} 13. Ng5 {[%clk 0:01:57.3]} 13... f5 {[%clk 0:01:57.1]} 14. Bxc3
{[%clk 0:01:51.8]} 14... h6 {[%clk 0:01:57.1]} 15. Nh3 {[%clk 0:01:34.7]} 15...
Na6 {[%clk 0:01:50.3]} 16. Nf4 {[%clk 0:01:29.4]} 16... Rc8 {[%clk 0:01:48.2]}
17. Qb2 {[%clk 0:01:09.8]} 17... Bf6 {[%clk 0:01:46]} 18. Bxf6 {[%clk
0:01:09.3]} 18... Rxf6 {[%clk 0:01:42.4]} 19. Bxa6 {[%clk 0:01:05.9]} 19... bxa6
{[%clk 0:01:42.4]} 20. O-O {[%clk 0:01:05.6]} 20... Rb8 {[%clk 0:01:34.2]} 21.
Qc3 {[%clk 0:00:30]} 21... Rb3 {[%clk 0:01:30.8]} 22. Qd4 {[%clk 0:00:30]} 22...
Qe7 {[%clk 0:01:30.5]} 23. Rfc1 {[%clk 0:00:26]} 23... e5 {[%clk 0:01:30.4]} 24.
Qc4+ {[%clk 0:00:20.9]} 24... Qf7 {[%clk 0:01:29.6]} 25. Qxf7+ {[%clk
0:00:11.5]} 25... Kxf7 {[%clk 0:01:30.5]} 26. Nd5 {[%clk 0:00:12.1]} 26... Rd6
{[%clk 0:01:30.8]} 27. Rc5 {[%clk 0:00:12.8]} 27... Rb5 {[%clk 0:01:30.1]} 28.
Rxb5 {[%clk 0:00:07.6]} 28... axb5 {[%clk 0:01:29.3]} 29. Nc3 {[%clk 0:00:06.1]}
29... Rxd2 {[%clk 0:01:29]} 30. Rb1 {[%clk 0:00:06.8]} 30... Rd3 {[%clk
0:00:52.5]} 31. Nxb5 {[%clk 0:00:07.2]} 31... Ke6 {[%clk 0:00:49.4]} 32. Kh2
{[%clk 0:00:04.6]} 32... Rb3 {[%clk 0:00:45.1]} 33. Nc7+ {[%clk 0:00:04.7]}
33... Kd6 {[%clk 0:00:45.2]} 34. Rc1 {[%clk 0:00:05]} 34... Rxa3 {[%clk
0:00:41.3]} 35. Na6 {[%clk 0:00:05]} 35... Rd3 {[%clk 0:00:33.4]} 36. Nc5 {[%clk
0:00:02.5]} 36... Rd5 {[%clk 0:00:32.7]} 37. Nxd7 {[%clk 0:00:02]} 37... Kxd7
{[%clk 0:00:33.6]} 38. Ra1 {[%clk 0:00:02.1]} 38... Ra5 {[%clk 0:00:34.3]} 39.
Ra3 {[%clk 0:00:02.7]} 39... Kc6 {[%clk 0:00:34.6]} 40. Kh3 {[%clk 0:00:02.1]}
40... Kc5 {[%clk 0:00:35]} 41. g4 {[%clk 0:00:02.6]} 41... Kb4 {[%clk
0:00:31.7]} 42. Ra1 {[%clk 0:00:02.8]} 42... a3 {[%clk 0:00:27.3]} 43. gxf5
{[%clk 0:00:02.9]} 43... h5 {[%clk 0:00:28]} 44. Kg3 {[%clk 0:00:02.4]} 44...
Kb3 {[%clk 0:00:28.5]} 45. e4 {[%clk 0:00:02.6]} 45... Ra4 {[%clk 0:00:21.1]}
46. f4 {[%clk 0:00:01.6]} 46... Rxe4 {[%clk 0:00:21.4]} 47. fxe5 {[%clk
0:00:02.1]} 47... Rxe5 {[%clk 0:00:22.3]} 48. Kf4 {[%clk 0:00:02.6]} 48... Ra5
{[%clk 0:00:17.3]} 49. Kg5 {[%clk 0:00:02.5]} 49... a2 {[%clk 0:00:17.8]} 50.
Kxh5 {[%clk 0:00:02.1]} 50... Rxf5+ {[%clk 0:00:17.9]} 51. Kg6 {[%clk
0:00:02.6]} 51... Rf4 {[%clk 0:00:18.2]} 52. Kg5 {[%clk 0:00:01.4]} 52... Rf2
{[%clk 0:00:18.2]} 0-1

[Event "Early-Titled-Tuesday-Blitz-April-23-2024"]
[Site "Chess.com"]
[Date "2024.04.23"]
[Round "10"]
[White "mertfelin"]
[Black "Juicy_Fork"]
[Result "1-0"]
[WhiteElo "2294"]
[BlackElo "2452"]
[TimeControl "180+1"]
[EndTime "10:01:07 PDT"]
[Termination "mertfelin won by resignation"]

1. e4 {[%clk 0:03:00.3]} 1... e5 {[%clk 0:02:57.6]} 2. Nf3 {[%clk 0:03:00.6]}
2... Nc6 {[%clk 0:02:57]} 3. Bc4 {[%clk 0:03:01]} 3... Nf6 {[%clk 0:02:57.2]} 4.
d3 {[%clk 0:03:01.5]} 4... Bc5 {[%clk 0:02:57]} 5. c3 {[%clk 0:03:02.1]} 5... d6
{[%clk 0:02:57.2]} 6. O-O {[%clk 0:02:57.8]} 6... h6 {[%clk 0:02:55.6]} 7. Nbd2
{[%clk 0:02:55.4]} 7... O-O {[%clk 0:02:54.7]} 8. h3 {[%clk 0:02:55.2]} 8... Re8
{[%clk 0:02:52.3]} 9. Re1 {[%clk 0:02:54.5]} 9... a6 {[%clk 0:02:41.7]} 10. a4
{[%clk 0:02:54.2]} 10... Ba7 {[%clk 0:02:37.8]} 11. b4 {[%clk 0:02:41]} 11... d5
{[%clk 0:02:30.5]} 12. exd5 {[%clk 0:02:41.3]} 12... Nxd5 {[%clk 0:02:31.4]} 13.
Qc2 {[%clk 0:02:41.5]} 13... Nf4 {[%clk 0:02:21]} 14. Ne4 {[%clk 0:02:32.3]}
14... Bxh3 {[%clk 0:02:05.5]} 15. Bxf4 {[%clk 0:02:28.7]} 15... exf4 {[%clk
0:01:41.3]} 16. gxh3 {[%clk 0:02:26.7]} 16... Qd7 {[%clk 0:01:38.6]} 17. Kg2
{[%clk 0:02:12.1]} 17... Ne5 {[%clk 0:01:37.9]} 18. Nxe5 {[%clk 0:02:01.2]}
18... Rxe5 {[%clk 0:01:32.8]} 19. Qd1 {[%clk 0:01:49.4]} 19... Kh7 {[%clk
0:01:11.6]} 20. Qf3 {[%clk 0:01:46.7]} 20... Rae8 {[%clk 0:00:51.2]} 21. d4
{[%clk 0:01:16.5]} 21... R5e7 {[%clk 0:00:38.7]} 22. Re2 {[%clk 0:00:44.5]}
22... f5 {[%clk 0:00:07.2]} 23. Nc5 {[%clk 0:00:42.1]} 23... Bxc5 {[%clk
0:00:06.1]} 24. bxc5 {[%clk 0:00:41.8]} 24... b5 {[%clk 0:00:02.9]} 25. Rxe7
{[%clk 0:00:23.6]} 25... Rxe7 {[%clk 0:00:02.5]} 26. axb5 {[%clk 0:00:24.3]}
26... axb5 {[%clk 0:00:02.5]} 27. Bd3 {[%clk 0:00:24.8]} 27... c6 {[%clk
0:00:01.9]} 28. Qxf4 {[%clk 0:00:19.8]} 28... Rf7 {[%clk 0:00:01.6]} 29. Qd6
{[%clk 0:00:18]} 29... Qe8 {[%clk 0:00:01.6]} 30. Qe5 {[%clk 0:00:14.3]} 30...
Qd8 {[%clk 0:00:01.4]} 31. Bxf5+ {[%clk 0:00:12.1]} 31... Kh8 {[%clk 0:00:01.9]}
32. Re1 {[%clk 0:00:09.6]} 32... Qg5+ {[%clk 0:00:01.7]} 33. Bg4 {[%clk
0:00:10.3]} 33... Qg6 {[%clk 0:00:01.4]} 34. Kh2 {[%clk 0:00:08.7]} 34... Qf6
{[%clk 0:00:01.1]} 35. Qxf6 {[%clk 0:00:08.9]} 35... Rxf6 {[%clk 0:00:01.7]} 36.
Kg3 {[%clk 0:00:09.4]} 36... g6 {[%clk 0:00:01.7]} 37. Re6 {[%clk 0:00:09.8]}
37... Rf7 {[%clk 0:00:01.8]} 38. Rxc6 {[%clk 0:00:10.2]} 38... h5 {[%clk
0:00:02]} 39. Rxg6 {[%clk 0:00:10.4]} 39... hxg4 {[%clk 0:00:01.8]} 40. hxg4
{[%clk 0:00:10.4]} 40... Ra7 {[%clk 0:00:02.7]} 41. Rb6 {[%clk 0:00:10.7]} 41...
Ra3 {[%clk 0:00:03.6]} 42. Rxb5 {[%clk 0:00:10.7]} 42... Rxc3+ {[%clk
0:00:04.5]} 43. f3 {[%clk 0:00:11.5]} 43... Rxc5 {[%clk 0:00:05.4]} 44. dxc5
{[%clk 0:00:11.4]} 1-0

[Event "Early-Titled-Tuesday-Blitz-April-23-2024"]
[Site "Chess.com"]
[Date "2024.04.23"]
[Round "10"]
[White "HamedWafa4"]
[Black "theoneandonlydaaevik"]
[Result "0-1"]
[WhiteElo "2723"]
[BlackElo "2606"]
[TimeControl "180+1"]
[EndTime "10:01:09 PDT"]
[Termination "theoneandonlydaaevik won on time"]

1. e4 {[%clk 0:03:00.9]} 1... c5 {[%clk 0:02:59.2]} 2. Nf3 {[%clk 0:03:01.1]}
2... e6 {[%clk 0:02:59.2]} 3. b3 {[%clk 0:02:59.7]} 3... b6 {[%clk 0:02:56.5]}
4. c4 {[%clk 0:02:57.9]} 4... Bb7 {[%clk 0:02:56.6]} 5. Nc3 {[%clk 0:02:56.4]}
5... d6 {[%clk 0:02:49.3]} 6. Bb2 {[%clk 0:02:54.3]} 6... Nf6 {[%clk 0:02:47.4]}
7. Bd3 {[%clk 0:02:46.7]} 7... Nbd7 {[%clk 0:02:45.9]} 8. O-O {[%clk 0:02:44.9]}
8... Be7 {[%clk 0:02:37.2]} 9. Bc2 {[%clk 0:02:44.5]} 9... O-O {[%clk
0:02:36.5]} 10. d4 {[%clk 0:02:44.4]} 10... cxd4 {[%clk 0:02:37.1]} 11. Nxd4
{[%clk 0:02:43]} 11... a6 {[%clk 0:02:37.7]} 12. Qe2 {[%clk 0:02:37.4]} 12...
Qc7 {[%clk 0:02:35.2]} 13. Rad1 {[%clk 0:02:35.8]} 13... Rfe8 {[%clk 0:02:24.1]}
14. h3 {[%clk 0:02:19.9]} 14... Bf8 {[%clk 0:02:22.8]} 15. Rfe1 {[%clk
0:02:11.9]} 15... Rac8 {[%clk 0:02:17.7]} 16. g4 {[%clk 0:01:59.6]} 16... Ne5
{[%clk 0:02:11]} 17. f4 {[%clk 0:01:54.2]} 17... Ng6 {[%clk 0:02:09.8]} 18. Qf2
{[%clk 0:01:48.4]} 18... e5 {[%clk 0:02:03.2]} 19. Nde2 {[%clk 0:01:41.2]} 19...
b5 {[%clk 0:01:45.2]} 20. f5 {[%clk 0:01:34.3]} 20... Nf4 {[%clk 0:01:35.8]} 21.
Nxf4 {[%clk 0:01:32.6]} 21... exf4 {[%clk 0:01:36.7]} 22. Qxf4 {[%clk
0:01:23.5]} 22... bxc4 {[%clk 0:01:27.7]} 23. g5 {[%clk 0:01:22]} 23... Nh5
{[%clk 0:01:24.6]} 24. Qf3 {[%clk 0:01:21.8]} 24... g6 {[%clk 0:01:23.7]} 25.
Nd5 {[%clk 0:01:20.5]} 25... Bxd5 {[%clk 0:01:21.7]} 26. Rxd5 {[%clk 0:01:21.3]}
26... c3 {[%clk 0:01:22]} 27. Bc1 {[%clk 0:01:18.9]} 27... Re5 {[%clk
0:01:18.6]} 28. f6 {[%clk 0:01:02.5]} 28... Rce8 {[%clk 0:01:14.5]} 29. Red1
{[%clk 0:00:51.5]} 29... h6 {[%clk 0:00:49.4]} 30. gxh6 {[%clk 0:00:41.4]} 30...
Kh7 {[%clk 0:00:48.7]} 31. Be3 {[%clk 0:00:31.5]} 31... Bxh6 {[%clk 0:00:38.5]}
32. Bxh6 {[%clk 0:00:22.8]} 32... Kxh6 {[%clk 0:00:39.4]} 33. Qe3+ {[%clk
0:00:18.4]} 33... Kh7 {[%clk 0:00:39.1]} 34. Rxd6 {[%clk 0:00:18.6]} 34... Qc8
{[%clk 0:00:21.5]} 35. Rd7 {[%clk 0:00:17.1]} 35... Kg8 {[%clk 0:00:21.6]} 36.
Qd4 {[%clk 0:00:10.7]} 36... Nxf6 {[%clk 0:00:18.5]} 37. Rd8 {[%clk 0:00:10.2]}
37... Qe6 {[%clk 0:00:04.8]} 38. Rxe8+ {[%clk 0:00:05.8]} 38... Nxe8 {[%clk
0:00:05.7]} 39. Qxc3 {[%clk 0:00:05.1]} 39... Nf6 {[%clk 0:00:04.9]} 40. Qg3
{[%clk 0:00:03.9]} 40... Nxe4 {[%clk 0:00:04.3]} 0-1

[Event "Early-Titled-Tuesday-Blitz-April-23-2024"]
[Site "Chess.com"]
[Date "2024.04.23"]
[Round "10"]
[White "KnightDuta"]
[Black "Mackster23"]
[Result "1-0"]
[WhiteElo "2748"]
[BlackElo "2585"]
[TimeControl "180+1"]
[EndTime "10:01:10 PDT"]
[Termination "KnightDuta won on time"]

1. d4 {[%clk 0:03:00.9]} 1... Nf6 {[%clk 0:03:00.4]} 2. Bf4 {[%clk 0:03:00.9]}
2... d5 {[%clk 0:03:00.4]} 3. e3 {[%clk 0:03:01.2]} 3... c5 {[%clk 0:03:00.4]}
4. Nd2 {[%clk 0:03:01.6]} 4... Nc6 {[%clk 0:02:41.2]} 5. Ngf3 {[%clk 0:03:01.7]}
5... e6 {[%clk 0:02:39.9]} 6. c3 {[%clk 0:03:00.4]} 6... cxd4 {[%clk 0:02:39.4]}
7. exd4 {[%clk 0:03:01.3]} 7... Nh5 {[%clk 0:02:39.8]} 8. Be3 {[%clk 0:03:00.9]}
8... Bd6 {[%clk 0:02:40.2]} 9. Bb5 {[%clk 0:02:59.6]} 9... Nf4 {[%clk 0:02:12]}
10. O-O {[%clk 0:02:57.1]} 10... Bd7 {[%clk 0:02:07.4]} 11. Re1 {[%clk
0:02:50.9]} 11... Ng6 {[%clk 0:02:06.6]} 12. c4 {[%clk 0:02:44.9]} 12... O-O
{[%clk 0:01:59.5]} 13. c5 {[%clk 0:02:43.3]} 13... Bc7 {[%clk 0:01:55.8]} 14. a3
{[%clk 0:02:40.5]} 14... f6 {[%clk 0:01:47.6]} 15. b4 {[%clk 0:02:39.9]} 15...
Kh8 {[%clk 0:01:45]} 16. Qb3 {[%clk 0:02:36.1]} 16... a6 {[%clk 0:01:31]} 17.
Bf1 {[%clk 0:02:32.9]} 17... Nce7 {[%clk 0:01:18]} 18. a4 {[%clk 0:02:31.5]}
18... e5 {[%clk 0:01:16.8]} 19. b5 {[%clk 0:02:30.2]} 19... e4 {[%clk
0:01:13.7]} 20. Nxe4 {[%clk 0:02:20.5]} 20... dxe4 {[%clk 0:01:12.8]} 21. Nd2
{[%clk 0:02:21.4]} 21... f5 {[%clk 0:01:11.3]} 22. Bg5 {[%clk 0:02:16.1]} 22...
h6 {[%clk 0:01:04.8]} 23. Bxe7 {[%clk 0:02:14.4]} 23... Qxe7 {[%clk 0:01:05.7]}
24. Rec1 {[%clk 0:02:05.2]} 24... Qg5 {[%clk 0:00:53]} 25. Nc4 {[%clk
0:01:57.4]} 25... f4 {[%clk 0:00:48.8]} 26. Nd2 {[%clk 0:01:37.2]} 26... Rae8
{[%clk 0:00:32.8]} 27. d5 {[%clk 0:01:37.1]} 27... Be5 {[%clk 0:00:28]} 28. Rab1
{[%clk 0:01:36.7]} 28... axb5 {[%clk 0:00:22.6]} 29. axb5 {[%clk 0:01:37.6]}
29... Bf5 {[%clk 0:00:22.9]} 30. d6 {[%clk 0:01:25.2]} 30... Nh4 {[%clk
0:00:20.5]} 31. d7 {[%clk 0:01:12.6]} 31... Bxd7 {[%clk 0:00:15.9]} 32. Nxe4
{[%clk 0:01:11.5]} 32... Qg6 {[%clk 0:00:16.5]} 33. f3 {[%clk 0:01:11.7]} 33...
Bf5 {[%clk 0:00:11.6]} 34. Kh1 {[%clk 0:01:04]} 34... Bxe4 {[%clk 0:00:08.6]}
35. fxe4 {[%clk 0:01:04.9]} 35... Qxe4 {[%clk 0:00:09.2]} 36. Re1 {[%clk
0:01:05.3]} 36... Qf5 {[%clk 0:00:08]} 37. Qc4 {[%clk 0:00:51.7]} 37... Ng6
{[%clk 0:00:07.1]} 38. Bd3 {[%clk 0:00:50.2]} 38... Qg5 {[%clk 0:00:06.3]} 39.
Qe4 {[%clk 0:00:47.4]} 39... Rf6 {[%clk 0:00:03.8]} 40. Qxb7 {[%clk 0:00:41.6]}
40... f3 {[%clk 0:00:03]} 41. Bxg6 {[%clk 0:00:35.1]} 41... Rxg6 {[%clk
0:00:02.3]} 42. Qxf3 {[%clk 0:00:34.5]} 42... Rf6 {[%clk 0:00:01.9]} 43. Qh3
{[%clk 0:00:28]} 43... Rfe6 {[%clk 0:00:01.7]} 44. b6 {[%clk 0:00:26.4]} 44...
Bb8 {[%clk 0:00:01.3]} 45. Rxe6 {[%clk 0:00:25.5]} 45... Rxe6 {[%clk 0:00:01.3]}
46. Qxe6 {[%clk 0:00:26.4]} 46... Qf4 {[%clk 0:00:01.5]} 47. Qh3 {[%clk
0:00:24.5]} 47... Qe4 {[%clk 0:00:01.7]} 48. Rg1 {[%clk 0:00:24.1]} 1-0